[Event "FIDE WYCC Girls U18 2023"]
[Site "Montesilvano"]
[Date "2023.11.21"]
[Round "8.6"]
[White "Skarbarchuk, Tetyana"]
[Black "Mungunzul, Bat-Erdene"]
[Result "1/2-1/2"]
[ECO "D15"]
[WhiteElo "2010"]
[BlackElo "2111"]
[Annotator "NA RC"]
[PlyCount "83"]
[EventDate "2023.11.13"]
[EventType "swiss"]
[EventCountry "ITA"]
[SourceTitle "playchess.com"]
[Source "ChessBase"]
[SourceQuality "1"]
[TimeControl "40/5400+30:1800+30"]

1. d4 {[%emt 0:00:02]} d5 {[%emt 0:00:07]} 2. c4 {[%emt 0:00:06]} c6 {[%emt 0:00:06]} 3. Nc3 {[%emt 0:00:13]} Nf6 {[%emt 0:00:08]} 4. Nf3 {[%emt 0:00:13]} a6 {[%emt 0:00:11]} 5. cxd5 {[%emt 0:00:23]} cxd5 {[%emt 0:00:20]} 6. Ne5 {[%emt 0:00:31]} Nc6 {[%emt 0:11:17]} 7. Bf4 {[%emt 0:00:26]} e6 {[%emt 0:04:13]} 8. e3 {[%emt 0:01:14]} Qb6 {[%emt 0:03:58]} 9. Nxc6 {[%emt 0:05:41]} bxc6 {[%emt 0:04:05]} 10. a3 {[%emt 0:03:09]} c5 {[%emt 0:07:08]} 11. dxc5 {[%emt 0:07:37]} Qxc5 {[%emt 0:01:11]} 12. Rc1 {[%emt 0:10:03]} Qa5 {[%emt 0:01:40]} 13. Bd3 {[%emt 0:10:55]} Be7 {[%emt 0:06:06]} 14. Qa4+ {[%emt 0:04:24]} Qxa4 {[%emt 0:00:17]} 15. Nxa4 {[%emt 0:00:05]} Nd7 {[%emt 0:00:15]} 16. O-O {[%emt 0:06:15]} e5 {[%emt 0:04:57]} 17. Bg3 {[%emt 0:01:26]} Bd6 {[%emt 0:01:24]} 18. Bf5 {[%emt 0:13:25]} Ke7 {[%emt 0:02:31]} 19. Bxd7 {[%emt 0:05:37]} Bxd7 {[%emt 0:00:09]} 20. Nb6 {[%emt 0:00:12]} Rab8 {[%emt 0:00:28]} 21. Nxd5+ {[%emt 0:02:44]} Ke6 {[%emt 0:00:17]} 22. Nc7+ {[%emt 0:02:52]} Ke7 {[%emt 0:07:39]} 23. b4 {[%emt 0:05:55]} Rhc8 {[%emt 0:02:03]} 24. Nxa6 {[%emt 0:01:51]} Ra8 {[%emt 0:00:14]} 25. Nc5 {[%emt 0:01:21]} Bb5 {[%emt 0:00:36]} 26. Rfd1 {[%emt 0:00:26]} Rxa3 {[%emt 0:00:35]} 27. Ne4 {[%emt 0:01:34]} Rxc1 {[%emt 0:03:39]} 28. Rxc1 {[%emt 0:00:04]} f6 {[%emt 0:01:44]} 29. Nxd6 {[%emt 0:00:29]} Kxd6 {[%emt 0:00:09]} 30. h4 {[%emt 0:01:06]} Rb3 {[%emt 0:00:43]} 31. Rc8 {[%emt 0:01:36]} Rxb4 {[%emt 0:01:07]} 32. Rg8 {[%emt 0:04:05]} Rg4 {[%emt 0:01:12]} 33. Kh2 {[%emt 0:00:55]} Bc4 {[%emt 0:08:03]} 34. Rh8 {[%emt 0:01:36]} h6 {[%emt 0:00:22]} 35. f3 {[%emt 0:00:56]} Rg6 {[%emt 0:00:23]} 36. Rc8 {[%emt 0:02:29]} Be6 {[%emt 0:02:27]} 37. Ra8 {[%emt 0:00:29]} h5 {[%emt 0:04:30]} 38. Ra5 {[%emt 0:00:34]} Bd5 {[%emt 0:04:11]} 39. e4 {[%emt 0:05:19]} Bc6 {[%emt 0:01:05]} 40. Ra7 {[%emt 0:00:00]} Bd7 {[%emt 0:00:00]} 41. Ra6+ {[%emt 0:01:01]} Bc6 {[%emt 0:03:16]} 42. Ra7 {[%emt 0:08:28]} 1/2-1/2

[Event "FIDE WYCC Girls U18 2023"]
[Site "Montesilvano"]
[Date "2023.11.21"]
[Round "8.7"]
[White "Margadgua Erdenebayar"]
[Black "Hakobyan, Astghik"]
[Result "1-0"]
[ECO "C07"]
[WhiteElo "2013"]
[BlackElo "2073"]
[Annotator "NA RC"]
[PlyCount "95"]
[EventDate "2023.11.13"]
[EventType "swiss"]
[EventCountry "ITA"]
[SourceTitle "playchess.com"]
[Source "ChessBase"]
[SourceQuality "1"]
[TimeControl "40/5400+30:1800+30"]

1. e4 {[%emt 0:00:03]} e6 {[%emt 0:00:04]} 2. d4 {[%emt 0:00:07]} d5 {[%emt 0:00:04]} 3. Nd2 {[%emt 0:00:19]} c5 {[%emt 0:00:06]} 4. exd5 {[%emt 0:00:06]} Qxd5 {[%emt 0:00:04]} 5. Ngf3 {[%emt 0:00:07]} cxd4 {[%emt 0:00:06]} 6. Bc4 {[%emt 0:00:05]} Qd6 {[%emt 0:00:04]} 7. O-O {[%emt 0:00:10]} Nf6 {[%emt 0:00:02]} 8. Nb3 {[%emt 0:00:41]} Nc6 {[%emt 0:00:07]} 9. Qe2 {[%emt 0:03:37]} Be7 {[%emt 0:00:44]} 10. Rd1 {[%emt 0:05:31]} e5 {[%emt 0:00:32]} 11. h3 {[%emt 0:01:05]} a6 {[%emt 0:12:36]} 12. a4 {[%emt 0:06:01]} Qc7 {[%emt 0:07:12]} 13. Re1 {[%emt 0:06:36]} O-O {[%emt 0:10:08]} 14. Bg5 {[%emt 0:26:20]} Bb4 {[%emt 0:26:09]} 15. Red1 {[%emt 0:03:18]} Nd7 {[%emt 0:03:16]} 16. c3 {[%emt 0:07:49]} dxc3 {[%emt 0:01:41]} 17. bxc3 {[%emt 0:03:42]} Be7 {[%emt 0:02:37]} 18. Be3 {[%emt 0:00:38]} b6 {[%emt 0:03:49]} 19. Rab1 {[%emt 0:02:34]} Bb7 {[%emt 0:03:18]} 20. Bd5 {[%emt 0:06:58]} Rae8 {[%emt 0:10:34]} 21. Qd3 {[%emt 0:05:56]} Ncb8 {[%emt 0:02:59]} 22. c4 {[%emt 0:02:20]} Bf6 {[%emt 0:04:26]} 23. Nbd2 {[%emt 0:04:16]} Bc6 {[%emt 0:04:20]} 24. Qb3 {[%emt 0:06:53]} e4 {[%emt 0:04:14]} 25. Ne1 {[%emt 0:00:46]} Nc5 {[%emt 0:02:10]} 26. Qxb6 {[%emt 0:04:18]} Qxb6 {[%emt 0:00:06]} 27. Rxb6 {[%emt 0:00:01]} Bxa4 {[%emt 0:01:41]} 28. Bxc5 {[%emt 0:01:25]} Bxd1 {[%emt 0:00:03]} 29. Bxf8 {[%emt 0:00:02]} Kxf8 {[%emt 0:00:59]} 30. Nxe4 {[%emt 0:01:17]} Bd4 {[%emt 0:00:41]} 31. Rb7 {[%emt 0:00:01]} Bh5 {[%emt 0:00:17]} 32. Nf3 {[%emt 0:00:34]} Bf6 {[%emt 0:00:40]} 33. Nxf6 {[%emt 0:02:14]} gxf6 34. g4 Bg6 {[%emt 0:00:17]} 35. Nh4 {[%emt 0:00:06]} Kg7 {[%emt 0:01:18]} 36. Nxg6 {[%emt 0:00:32]} hxg6 {[%emt 0:00:12]} 37. Rxf7+ {[%emt 0:00:57]} Kh6 {[%emt 0:00:01]} 38. Rxf6 {[%emt 0:00:24]} a5 {[%emt 0:00:28]} 39. Rb6 {[%emt 0:00:35]} Nd7 {[%emt 0:00:40]} 40. Ra6 {[%emt 0:00:00]} Re1+ {[%emt 0:00:00]} 41. Kg2 {[%emt 0:02:43]} Ra1 {[%emt 0:00:21]} 42. h4 {[%emt 0:00:14]} Ne5 {[%emt 0:02:39]} 43. Be4 {[%emt 0:06:06]} Kg7 {[%emt 0:03:42]} 44. h5 {[%emt 0:06:01]} Ra4 {[%emt 0:06:21]} 45. Bxg6 {[%emt 0:03:50]} Nxg4 {[%emt 0:01:01]} 46. Bd3 {[%emt 0:03:34]} Ra3 {[%emt 0:01:46]} 47. Bf5 {[%emt 0:01:34]} Ne5 {[%emt 0:02:10]} 48. h6+ {[%emt 0:00:12]} 1-0

[Event "FIDE WYCC Girls U18 2023"]
[Site "Montesilvano"]
[Date "2023.11.21"]
[Round "8.8"]
[White "Voriskova, Anna"]
[Black "Oviedo Acosta, Paula"]
[Result "1-0"]
[ECO "B40"]
[WhiteElo "2065"]
[BlackElo "1639"]
[Annotator "NA RC"]
[PlyCount "53"]
[EventDate "2023.11.13"]
[EventType "swiss"]
[EventCountry "ITA"]
[SourceTitle "playchess.com"]
[Source "ChessBase"]
[SourceQuality "1"]
[TimeControl "40/5400+30:1800+30"]

1. e4 {[%emt 0:00:03]} c5 {[%emt 0:00:18]} 2. Nf3 {[%emt 0:00:08]} e6 {[%emt 0:00:15]} 3. c4 {[%emt 0:00:08]} Nc6 {[%emt 0:00:26]} 4. d4 {[%emt 0:00:08]} cxd4 {[%emt 0:00:11]} 5. Nxd4 {[%emt 0:00:02]} g6 {[%emt 0:01:18]} 6. Nc3 {[%emt 0:06:02]} a6 {[%emt 0:00:16]} 7. Nxc6 {[%emt 0:02:19]} bxc6 {[%emt 0:00:06]} 8. Be3 {[%emt 0:00:53]} Nf6 {[%emt 0:02:09]} 9. Be2 {[%emt 0:02:31]} Qc7 {[%emt 0:02:24]} 10. O-O {[%emt 0:02:48]} Bg7 {[%emt 0:00:27]} 11. f4 {[%emt 0:04:25]} d6 {[%emt 0:03:36]} 12. Qd2 {[%emt 0:12:13]} Bb7 {[%emt 0:07:52]} 13. Rad1 {[%emt 0:04:40]} d5 {[%emt 0:02:49]} 14. cxd5 {[%emt 0:01:36]} cxd5 {[%emt 0:00:41]} 15. exd5 {[%emt 0:00:32]} Nxd5 {[%emt 0:00:27]} 16. Nxd5 {[%emt 0:00:30]} Bxd5 {[%emt 0:00:09]} 17. Rc1 {[%emt 0:01:52]} Qb7 {[%emt 0:00:47]} 18. Bc5 {[%emt 0:17:37]} Qxb2 {[%emt 0:08:06]} 19. Qe3 {[%emt 0:06:48]} Rd8 {[%emt 0:09:05]} 20. Rfd1 {[%emt 0:03:17]} h5 {[%emt 0:08:28]} 21. Ba3 {[%emt 0:05:04]} Qb7 {[%emt 0:02:57]} 22. Rb1 {[%emt 0:00:21]} Qc6 {[%emt 0:03:46]} 23. Rdc1 {[%emt 0:02:51]} Qa4 {[%emt 0:01:30]} 24. Rb4 {[%emt 0:01:48]} Qd7 {[%emt 0:01:35]} 25. Rb6 {[%emt 0:02:01]} Bb7 {[%emt 0:15:43]} 26. Rd6 {[%emt 0:02:56]} Qa4 {[%emt 0:01:11]} 27. Rxe6+ {[%emt 0:01:55]} 1-0

[Event "FIDE WYCC Girls U18 2023"]
[Site "Montesilvano"]
[Date "2023.11.21"]
[Round "8.9"]
[White "Gasimova, Samra"]
[Black "Liu, Kelsey"]
[Result "1/2-1/2"]
[ECO "E22"]
[WhiteElo "1860"]
[BlackElo "2051"]
[Annotator "NA RC"]
[PlyCount "120"]
[EventDate "2023.11.13"]
[EventType "swiss"]
[EventCountry "ITA"]
[SourceTitle "playchess.com"]
[Source "ChessBase"]
[SourceQuality "1"]
[TimeControl "40/5400+30:1800+30"]

1. d4 {[%emt 0:00:03]} Nf6 {[%emt 0:00:10]} 2. c4 {[%emt 0:00:07]} e6 {[%emt 0:00:19]} 3. Nc3 {[%emt 0:00:04]} Bb4 {[%emt 0:00:10]} 4. Qb3 {[%emt 0:00:04]} c5 {[%emt 0:00:31]} 5. dxc5 {[%emt 0:00:04]} Na6 {[%emt 0:00:26]} 6. a3 {[%emt 0:00:52]} Bxc3+ {[%emt 0:01:26]} 7. Qxc3 {[%emt 0:00:05]} Nxc5 {[%emt 0:00:11]} 8. b4 {[%emt 0:00:32]} Nce4 {[%emt 0:03:07]} 9. Qb2 {[%emt 0:00:28]} d5 {[%emt 0:03:19]} 10. c5 {[%emt 0:01:24]} h6 {[%emt 0:11:08]} 11. f3 {[%emt 0:10:11]} Ng5 {[%emt 0:01:49]} 12. Bf4 {[%emt 0:06:25]} O-O {[%emt 0:08:04]} 13. h4 {[%emt 0:08:41]} Ngh7 {[%emt 0:01:01]} 14. Be5 {[%emt 0:05:39]} Bd7 {[%emt 0:09:25]} 15. e3 {[%emt 0:01:20]} b6 {[%emt 0:05:56]} 16. g4 {[%emt 0:07:12]} Ne8 {[%emt 0:04:32]} 17. Bd3 {[%emt 0:05:00]} f6 {[%emt 0:07:55]} 18. Bc3 {[%emt 0:11:40]} bxc5 {[%emt 0:04:49]} 19. Qc2 {[%emt 0:03:46]} f5 {[%emt 0:00:15]} 20. bxc5 {[%emt 0:00:18]} Qc7 {[%emt 0:08:01]} 21. gxf5 {[%emt 0:02:04]} exf5 {[%emt 0:01:11]} 22. Bd4 {[%emt 0:04:06]} Nhf6 {[%emt 0:11:40]} 23. Ne2 {[%emt 0:03:59]} Nh5 {[%emt 0:00:27]} 24. Rg1 {[%emt 0:07:49]} Rc8 {[%emt 0:02:16]} 25. f4 {[%emt 0:05:06]} Qd8 {[%emt 0:07:19]} 26. Kd2 {[%emt 0:12:54]} Rf7 {[%emt 0:00:50]} 27. Ng3 {[%emt 0:00:55]} Qxh4 {[%emt 0:02:52]} 28. Nxh5 {[%emt 0:01:20]} Qxh5 {[%emt 0:00:27]} 29. Rh1 {[%emt 0:00:57]} Qg6 {[%emt 0:00:13]} 30. Rag1 {[%emt 0:00:24]} Qe6 {[%emt 0:00:21]} 31. Kd1 {[%emt 0:01:43]} Kf8 {[%emt 0:03:24]} 32. Qg2 {[%emt 0:00:41]} Nf6 {[%emt 0:00:25]} 33. Bc2 {[%emt 0:00:28]} Ng4 {[%emt 0:01:01]} 34. Qd2 {[%emt 0:00:35]} Qa6 35. Qb4 {[%emt 0:00:31]} Nf2+ {[%emt 0:02:00]} 36. Kd2 {[%emt 0:00:10]} Bc6 {[%emt 0:00:52]} 37. Rh5 {[%emt 0:00:28]} Ne4+ {[%emt 0:00:20]} 38. Bxe4 {[%emt 0:00:22]} dxe4 {[%emt 0:00:10]} 39. Qc3 {[%emt 0:00:04]} Rd8 {[%emt 0:00:32]} 40. Ke1 {[%emt 0:00:00]} Rdd7 {[%emt 0:00:00]} 41. Rh2 {[%emt 0:08:57]} Qd3 {[%emt 0:14:02]} 42. Rd2 {[%emt 0:03:33]} Qxc3 {[%emt 0:05:20]} 43. Bxc3 {[%emt 0:00:09]} Rxd2 {[%emt 0:00:11]} 44. Kxd2 {[%emt 0:00:15]} Rb7 {[%emt 0:01:00]} 45. Rg6 {[%emt 0:01:45]} Be8 {[%emt 0:00:34]} 46. Rg1 {[%emt 0:06:06]} g6 {[%emt 0:00:51]} 47. Bd4 {[%emt 0:01:17]} Kf7 {[%emt 0:01:30]} 48. Kc3 {[%emt 0:04:52]} Ba4 {[%emt 0:00:54]} 49. Kc4 {[%emt 0:02:06]} Bb3+ {[%emt 0:00:40]} 50. Kc3 {[%emt 0:00:03]} Bd5 {[%emt 0:00:23]} 51. Kc2 {[%emt 0:00:48]} h5 {[%emt 0:00:09]} 52. Bc3 {[%emt 0:02:58]} Rb5 {[%emt 0:04:07]} 53. Bd4 {[%emt 0:01:51]} Rb3 {[%emt 0:01:35]} 54. c6 {[%emt 0:01:27]} Rxa3 {[%emt 0:03:04]} 55. c7 {[%emt 0:00:23]} Be6 {[%emt 0:00:03]} 56. Rb1 {[%emt 0:01:14]} Ra6 {[%emt 0:00:23]} 57. Kd2 {[%emt 0:01:01]} Ke7 {[%emt 0:04:11]} 58. Rb8 {[%emt 0:01:14]} Rc6 {[%emt 0:00:39]} 59. Rb7 {[%emt 0:00:07]} Kd7 {[%emt 0:00:38]} 60. Rxa7 {[%emt 0:00:12]} Rxc7 {[%emt 0:00:06]} 1/2-1/2

[Event "FIDE WYCC Girls U18 2023"]
[Site "Montesilvano"]
[Date "2023.11.21"]
[Round "8.10"]
[White "Shohradova, Lala"]
[Black "Obada, Ema"]
[Result "1-0"]
[ECO "D31"]
[WhiteElo "1846"]
[BlackElo "2023"]
[Annotator "NA RC"]
[PlyCount "119"]
[EventDate "2023.11.13"]
[EventType "swiss"]
[EventCountry "ITA"]
[SourceTitle "playchess.com"]
[Source "ChessBase"]
[SourceQuality "1"]
[TimeControl "40/5400+30:1800+30"]

1. d4 {[%emt 0:00:05]} d5 {[%emt 0:00:05]} 2. c4 {[%emt 0:00:20]} e6 {[%emt 0:00:05]} 3. Nc3 {[%emt 0:01:32]} a6 {[%emt 0:00:07]} 4. cxd5 {[%emt 0:01:32]} exd5 {[%emt 0:00:06]} 5. Nf3 {[%emt 0:00:09]} Nf6 {[%emt 0:00:11]} 6. Bg5 {[%emt 0:00:47]} Be6 {[%emt 0:00:15]} 7. e3 {[%emt 0:01:33]} Nbd7 {[%emt 0:01:11]} 8. Bd3 {[%emt 0:04:18]} Bd6 {[%emt 0:00:27]} 9. O-O {[%emt 0:00:48]} O-O {[%emt 0:02:17]} 10. Rc1 {[%emt 0:07:08]} c6 {[%emt 0:02:16]} 11. Nd2 {[%emt 0:10:22]} Re8 {[%emt 0:11:00]} 12. f3 {[%emt 0:12:03]} c5 {[%emt 0:17:01]} 13. Kh1 {[%emt 0:13:08]} b5 {[%emt 0:12:19]} 14. Ne2 {[%emt 0:07:19]} Qb6 {[%emt 0:05:36]} 15. h3 {[%emt 0:04:38]} cxd4 {[%emt 0:16:10]} 16. exd4 {[%emt 0:02:52]} h6 {[%emt 0:06:43]} 17. Bh4 {[%emt 0:01:05]} g5 {[%emt 0:01:29]} 18. Bf2 {[%emt 0:00:25]} Nh5 {[%emt 0:00:21]} 19. Bb1 {[%emt 0:03:39]} Ndf6 {[%emt 0:01:14]} 20. Nb3 {[%emt 0:00:47]} Ra7 {[%emt 0:02:49]} 21. Nc5 {[%emt 0:06:13]} Bb8 {[%emt 0:03:33]} 22. Nd3 {[%emt 0:01:48]} Rae7 {[%emt 0:07:34]} 23. Ne5 {[%emt 0:02:25]} Bd7 {[%emt 0:02:32]} 24. g4 {[%emt 0:01:04]} Ng7 {[%emt 0:02:03]} 25. Ng3 {[%emt 0:06:03]} Qb7 {[%emt 0:00:46]} 26. Qd3 {[%emt 0:00:09]} b4 {[%emt 0:01:33]} 27. Rfe1 {[%emt 0:03:15]} Bb5 {[%emt 0:00:45]} 28. Qd2 {[%emt 0:01:56]} Bxe5 {[%emt 0:01:11]} 29. dxe5 {[%emt 0:00:01]} Rxe5 {[%emt 0:00:08]} 30. Rxe5 {[%emt 0:00:11]} Rxe5 {[%emt 0:00:04]} 31. Bd4 {[%emt 0:00:16]} Re6 {[%emt 0:00:05]} 32. Qxb4 {[%emt 0:04:52]} Qb8 {[%emt 0:01:25]} 33. Rg1 {[%emt 0:00:18]} Qf4 {[%emt 0:00:26]} 34. a4 {[%emt 0:01:18]} Qxf3+ {[%emt 0:01:12]} 35. Kh2 {[%emt 0:00:01]} Bd3 {[%emt 0:00:37]} 36. Bxf6 {[%emt 0:00:44]} Rxf6 {[%emt 0:00:18]} 37. Qb8+ {[%emt 0:00:10]} Kh7 {[%emt 0:00:07]} 38. Rf1 {[%emt 0:00:10]} Qxf1 {[%emt 0:00:36]} 39. Nxf1 {[%emt 0:00:05]} Bxb1 {[%emt 0:00:04]} 40. Kg1 {[%emt 0:00:00]} Ne6 {[%emt 0:00:00]} 41. Qe5 {[%emt 0:03:24]} Rf4 {[%emt 0:10:49]} 42. Qxd5 {[%emt 0:09:34]} h5 {[%emt 0:08:30]} 43. Qd1 {[%emt 0:08:29]} Bg6 {[%emt 0:00:34]} 44. gxh5 {[%emt 0:02:12]} Bf5 {[%emt 0:00:19]} 45. Ne3 {[%emt 0:00:40]} Bxh3 {[%emt 0:01:28]} 46. Qd3+ {[%emt 0:02:25]} Kh6 {[%emt 0:01:28]} 47. Qxa6 {[%emt 0:07:48]} Kxh5 {[%emt 0:01:02]} 48. Qe2+ {[%emt 0:01:10]} g4 {[%emt 0:01:36]} 49. a5 {[%emt 0:00:51]} Nd4 {[%emt 0:00:27]} 50. Qd3 {[%emt 0:00:31]} Nf3+ {[%emt 0:00:37]} 51. Kh1 {[%emt 0:00:05]} Kh4 {[%emt 0:04:14]} 52. a6 {[%emt 0:02:56]} Ra4 {[%emt 0:03:42]} 53. Qa3 {[%emt 0:00:35]} Rxa3 {[%emt 0:04:52]} 54. bxa3 {[%emt 0:00:01]} Kg3 {[%emt 0:00:36]} 55. a7 {[%emt 0:00:31]} Kf2 {[%emt 0:00:14]} 56. Nxg4+ {[%emt 0:00:48]} Bxg4 {[%emt 0:00:39]} 57. a8=Q {[%emt 0:00:03]} Bh3 {[%emt 0:00:36]} 58. Qa7+ {[%emt 0:00:04]} Kg3 {[%emt 0:00:23]} 59. Qc7+ {[%emt 0:00:01]} Kf2 {[%emt 0:00:11]} 60. Qc2+ {[%emt 0:00:07]} 1-0

[Event "FIDE WYCC Girls U18 2023"]
[Site "Montesilvano"]
[Date "2023.11.21"]
[Round "8.11"]
[White "Starosta, Martyna"]
[Black "Wan, Qian"]
[Result "1-0"]
[ECO "D31"]
[WhiteElo "2208"]
[BlackElo "1945"]
[Annotator "RC"]
[PlyCount "119"]
[EventDate "2023.11.13"]
[EventType "swiss"]
[EventCountry "ITA"]
[SourceTitle "playchess.com"]
[Source "ChessBase"]
[SourceQuality "1"]
[TimeControl "40/5400+30:1800+30"]

1. d4 {[%emt 0:00:03]} d5 {[%emt 0:00:06]} 2. c4 {[%emt 0:00:05]} e6 {[%emt 0:00:05]} 3. Nc3 {[%emt 0:00:05]} Bb4 {[%emt 0:00:05]} 4. cxd5 {[%emt 0:00:07]} exd5 {[%emt 0:00:06]} 5. Bf4 {[%emt 0:00:04]} Nf6 {[%emt 0:00:38]} 6. e3 {[%emt 0:00:08]} O-O {[%emt 0:00:10]} 7. Bd3 {[%emt 0:00:08]} c5 {[%emt 0:05:28]} 8. Nge2 {[%emt 0:00:10]} Nc6 {[%emt 0:00:42]} 9. O-O {[%emt 0:06:30]} h6 {[%emt 0:06:11]} 10. Rc1 {[%emt 0:06:10]} c4 {[%emt 0:06:02]} 11. Bb1 {[%emt 0:00:40]} Re8 {[%emt 0:03:35]} 12. Nb5 {[%emt 0:17:19]} Re7 {[%emt 0:11:51]} 13. a3 {[%emt 0:04:00]} Ba5 {[%emt 0:02:19]} 14. Bg3 {[%emt 0:03:33]} a6 {[%emt 0:04:40]} 15. Nbc3 {[%emt 0:00:44]} b5 {[%emt 0:07:55]} 16. f3 {[%emt 0:14:23]} Rxe3 {[%emt 0:11:52]} 17. Bh4 {[%emt 0:00:39]} Re8 {[%emt 0:04:56]} 18. Qc2 {[%emt 0:22:23]} g6 {[%emt 0:01:46]} 19. Qd2 {[%emt 0:03:53]} Kg7 {[%emt 0:01:16]} 20. g4 {[%emt 0:01:17]} Be6 {[%emt 0:09:38]} 21. Kh1 {[%emt 0:01:29]} Bc7 {[%emt 0:04:35]} 22. Rg1 {[%emt 0:02:28]} g5 {[%emt 0:02:17]} 23. Bf2 {[%emt 0:01:39]} Ng8 {[%emt 0:00:36]} 24. Ng3 {[%emt 0:01:24]} Kf8 {[%emt 0:01:58]} 25. Be3 {[%emt 0:02:57]} Ke7 {[%emt 0:03:55]} 26. Nf5+ {[%emt 0:02:06]} Kd7 {[%emt 0:00:54]} 27. Nxh6 {[%emt 0:05:49]} Nxh6 {[%emt 0:00:08]} 28. Bxg5 {[%emt 0:00:03]} Qb8 {[%emt 0:00:02]} 29. Bxh6 {[%emt 0:00:07]} Rh8 {[%emt 0:00:06]} 30. Rc2 {[%emt 0:00:45]} Bxh2 {[%emt 0:03:01]} 31. Qxh2 {[%emt 0:00:40]} Nxd4 {[%emt 0:00:04]} 32. Qh5 {[%emt 0:01:54]} Nxc2 {[%emt 0:01:48]} 33. Bxc2 {[%emt 0:00:01]} d4 {[%emt 0:04:16]} 34. Rd1 {[%emt 0:02:16]} Qb6 {[%emt 0:01:13]} 35. Ne4 {[%emt 0:01:05]} Rad8 {[%emt 0:00:47]} 36. Nc5+ {[%emt 0:00:47]} Kc8 {[%emt 0:00:16]} 37. Nxe6 {[%emt 0:00:34]} fxe6 {[%emt 0:00:01]} 38. Be4 {[%emt 0:00:20]} d3 {[%emt 0:00:12]} 39. Kg2 {[%emt 0:00:26]} b4 {[%emt 0:00:18]} 40. axb4 {[%emt 0:00:00]} Qxb4 {[%emt 0:00:00]} 41. b3 {[%emt 0:13:31]} d2 {[%emt 0:11:02]} 42. bxc4 {[%emt 0:03:33]} Qxc4 {[%emt 0:01:39]} 43. Kg3 {[%emt 0:01:55]} Rd4 {[%emt 0:07:00]} 44. Qg6 {[%emt 0:02:39]} Rxe4 {[%emt 0:05:20]} 45. Qxe4 {[%emt 0:01:10]} Qxe4 {[%emt 0:00:12]} 46. fxe4 {[%emt 0:00:08]} Rxh6 {[%emt 0:00:03]} 47. Rxd2 {[%emt 0:00:30]} Kc7 {[%emt 0:02:17]} 48. g5 {[%emt 0:00:34]} Rh1 {[%emt 0:02:18]} 49. Kg4 {[%emt 0:01:03]} Re1 {[%emt 0:01:38]} 50. g6 {[%emt 0:04:17]} Rxe4+ {[%emt 0:00:56]} 51. Kg5 {[%emt 0:02:09]} Rb4 {[%emt 0:04:23]} 52. g7 {[%emt 0:01:17]} Rb8 {[%emt 0:02:11]} 53. Kf6 {[%emt 0:00:05]} a5 {[%emt 0:01:05]} 54. Kxe6 {[%emt 0:00:20]} Ra8 {[%emt 0:00:48]} 55. Rg2 {[%emt 0:01:20]} Re8+ {[%emt 0:00:40]} 56. Kf7 {[%emt 0:00:16]} Ra8 {[%emt 0:00:04]} 57. g8=Q {[%emt 0:00:21]} Rxg8 {[%emt 0:00:03]} 58. Rxg8 {[%emt 0:00:25]} Kc6 {[%emt 0:00:05]} 59. Rg5 {[%emt 0:00:06]} a4 {[%emt 0:00:10]} 60. Ra5 {[%emt 0:00:09]} 1-0